{"text_format":"3","workbook":"xlsx","n_sheets":1,"sheets":["прилож. № 7"],"read":"whole","date_system":"1900"}

{"sheet":"прилож. № 7","index":0,"n_rows":222,"n_cols":6,"rows_kept":222,"merged":[[0,0,0,5],[1,0,1,5],[2,1,2,5],[3,0,3,5]]}
["                                                                                    Приложение № 2"]
["  к  решению Думы Ушаковского муниципального образования от 25.10.2018 г. № 137                                                                                                                                   \"О внесении изменений в решение Думы Ушаковского муниципального образования № 66 от 08.12.2017 г. \"Об утверждении бюджета на 2018 г. и на плановый период 2019-2020 годов\"                                                                                                                                                                                                                                      "]
[]
["РАСПРЕДЕЛЕНИЕ БЮДЖЕТНЫХ АССИГНОВАНИЙ  ПО РАЗДЕЛАМ, ПОДРАЗДЕЛАМ, ЦЕЛЕВЫМ СТАТЬЯМ (МУНИЦИПАЛЬНЫМ ПРОГРАММАМ И НЕПРОГРАММНЫМ НАПРАВЛЕНИЯМ ДЕЯТЕЛЬНОСТИ) И ВИДАМ РАСХОДОВ КЛАССИФИКАЦИИ РАСХОДОВ БЮДЖЕТОВ НА 2018 ГОД"]
[]
["Наименование","РЗ","Пр","КЦСР","КВР","Сумма         (тыс. руб)"]
["В С Е Г О",{"$nulls":4},{"$f":"F8+F94+F104+F113+F134+F173+F191+F208","v":89913.9}]
["ОБЩЕГОСУДАРСТВЕННЫЕ ВОПРОСЫ","01","00","00.0.00.00000","000",{"$f":"F9+F44+F83+F33+F90","v":24366.9}]
["Функционирование высшего должностного лица субъекта Российской Федерации и муниципального образования","01","02","00.0.00.00000","000",{"$f":"F10","v":1826.3}]
["Непрограммные расходы органов местного самоуправления","01","02","91.0.00.00000","000",{"$f":"F11+F18","v":1826.3}]
["Непрограммные расходы органов местного самоуправления за счет средств местного бюджета","01","02","91.1.00.00000","000",{"$f":"F12","v":1826.3}]
["Осуществление органами местного самоуправления полномочий местного значения поселения","01","02","91.1.00.60000","000",{"$f":"F13","v":1826.3}]
["Обеспечение деятельности в сфере установленных функций","01","02","91.1.00.60001","000",{"$f":"F16+F17+F32","v":1826.3}]
["Расходы на выплаты персоналу в целях обеспечения выполнения функций государственными (муниципальными) органами, казенными учреждениями, органами управления государственными внебюджетными фондами","01","02","91.1.00.60001","100",{"$f":"F15","v":1826.3}]
["Расходы на выплаты персоналу государственных (муниципальных) органов","01","02","91.1.00.60001","120",{"$f":"F16+F17+F32","v":1826.3}]
["Фонд оплаты труда государственных (муниципальных) органов ","01","02","91.1.00.60001","121",1413.1]
["Взносы по обязательному социальному страхованию на выплаты денежного содержания и иные выплаты работникам государственных (муниципальных) органов","01","02","91.1.00.60001","129",343.2]
["Непрограммные расходы органов местного самоуправления за счет средств областного бюджета","01","02","91.1.00.60003","000",{"$f":"F19","v":{"v":0,"d":"0.0"}}]
["Субсидии на выравнивание обеспеченности муниципальных образований Иркутской области по реализации ими их отдельных расходных обязательств","01","02","91.1.00.60004","000",{"$f":"F20","v":{"v":0,"d":"0.0"}}]
["Расходы на выплаты персоналу в целях обеспечения выполнения функций государственными (муниципальными) органами, казенными учреждениями, органами управления государственными внебюджетными фондами","01","02","91.1.00.60005","100",{"$f":"F21","v":{"v":0,"d":"0.0"}}]
["Расходы на выплаты персоналу государственных (муниципальных) органов","01","02","91.1.00.60006","120",{"$f":"F22+F23","v":{"v":0,"d":"0.0"}}]
["Фонд оплаты труда государственных (муниципальных) органов ","01","02","91.1.00.60007","121",{"v":0,"d":"0.0"}]
["Взносы по обязательному социальному страхованию на выплаты денежного содержания и иные выплаты работникам государственных (муниципальных) органов","01","02","91.1.00.60008","129",{"v":0,"d":"0.0"}]
["Функционирование Правительства Российской Федерации, высших исполнительных органов государственной власти субъектов РФ, местных администраций","01","04","91.1.00.60009","000",{"$f":"F44+F25","v":18638.2}]
["Программные расходы","01","04","91.1.00.60010","000",{"$f":"F26","v":{"v":0,"d":"0.0"}}]
["Муниципальная программа \"Подготовка к празднованию 70-летия победы\"","01","04","91.1.00.60011","000",{"v":0,"d":"0.0"}]
["Реализация мероприятий муниципальной программы за счет средств местного бюджета","01","04","91.1.00.60012","000",{"v":0,"d":"0.0"}]
["Мероприятия, связанные, с подготовкой к празднованию 70-летия победы","01","04","91.1.00.60013","000",{"v":0,"d":"0.0"}]
["Закупка товаров, работ и услуг для обеспечения государственных (муниципальных) нужд","01","04","91.1.00.60014","200",{"v":0,"d":"0.0"}]
["Иные закупки товаров, работ и услуг для обеспечения государственных (муниципальных) нужд","01","04","91.1.00.60015","240",{"v":0,"d":"0.0"}]
["Прочая закупка товаров, работ и услуг для обеспечения государственных (муниципальных) нужд","01","04","91.1.00.60016","244"]
["Иные выплаты персоналу государственных (муниципальных) органов, за исключением фонда оплаты труда","01","02","91.1.00.60001","122",{"$f":"100-30","v":{"v":70,"d":"70.0"}}]
["Функционирование законодательных (представительных) органов государственной власти и представительных органов муниципальных образований","01","03","91.1.00.00000","000",{"$f":"F34","v":948.4}]
["Непрограммные расходы органов местного самоуправления за счет средств местного бюджета","01","03","91.1.00.00000","000",{"$f":"F35","v":948.4}]
["Осуществление органами местного самоуправления полномочий местного значения поселения","01","03","91.1.00.60000","000",{"$f":"F36","v":948.4}]
["Обеспечение деятельности в сфере установленных функций","01","03","91.1.00.60001","000",{"$f":"F37+F41","v":948.4}]
["Расходы на выплаты персоналу в целях обеспечения выполнения функций государственными (муниципальными) органами, казенными учреждениями, органами управления государственными внебюджетными фондами","01","03","91.1.00.60001","100",{"$f":"F38","v":918.4}]
["Расходы на выплаты персоналу государственных (муниципальных) органов","01","03","91.1.00.60001","120",{"$f":"F39+F40","v":918.4}]
["Фонд оплаты труда государственных (муниципальных) органов ","01","03","91.1.00.60001","121",{"$f":"587.9+117","v":704.9}]
["Взносы по обязательному социальному страхованию на выплаты денежного содержания и иные выплаты работникам государственных (муниципальных) органов","01","03","91.1.00.60001","129",{"$f":"177.5+36","v":213.5}]
["Иные бюджетные ассигнования","01","03","91.1.00.60001","800",{"$f":"F43","v":{"v":30,"d":"30.0"}}]
["Уплата налогов,сборов и иных платежей","01","03","91.1.00.60001","850",{"v":30,"d":"30.0"}]
["Уплата иных платежей","01","03","91.1.00.60001","853",{"v":30,"d":"30.0"}]
["Непрограммные расходы органов местного самоуправления","01","04","91.0.00.00000","000",{"$f":"F45+F62","v":18638.2}]
["Непрограммные расходы органов местного самоуправления за счет средств местного бюджета","01","04","91.1.00.00000","000",{"$f":"F46","v":18637.5}]
["Осуществление органами местного самоуправления полномочий местного значения поселения","01","04","91.1.00.60000","000",{"$f":"F47","v":18637.5}]
["Обеспечение деятельности в сфере установленных функций","01","04","91.1.00.60001","000",{"$f":"F48+F51+F53+F56","v":18637.5}]
["Расходы на выплаты персоналу в целях обеспечения выполнения функций государственными (муниципальными) органами, казенными учреждениями, органами управления государственными внебюджетными фондами","01","04","91.1.00.60001","100",{"$f":"F49","v":13064.2}]
["Расходы на выплаты персоналу государственных (муниципальных) органов","01","04","91.1.00.60001","120",{"$f":"F50+F52","v":13064.2}]
["Фонд оплаты труда государственных (муниципальных) органов ","01","04","91.1.00.60001","121",{"v":10034,"d":"10034.0"}]
["Иные выплаты персоналу государственных (муниципальных) органов, за исключением фонда оплаты труда","01","04","91.1.00.60002","122",{"v":60,"d":"60.0"}]
["Взносы по обязательному социальному страхованию на выплаты денежного содержания и иные выплаты работникам государственных (муниципальных) органов","01","04","91.1.00.60001","129",3030.2]
["Закупка товаров, работ и услуг для обеспечения государственных (муниципальных) нужд","01","04","91.1.00.60001","200",{"$f":"F54","v":{"v":5212,"d":"5212.0"}}]
["Иные закупки товаров, работ и услуг для обеспечения государственных (муниципальных) нужд","01","04","91.1.00.60001","240",{"$f":"F55","v":{"v":5212,"d":"5212.0"}}]
["Прочая закупка товаров, работ и услуг для обеспечения государственных (муниципальных) нужд","01","04","91.1.00.60001","244",{"v":5212,"d":"5212.0"}]
["Иные бюджетные ассигнования","01","04","91.1.00.60001","800",{"$f":"F57+F60","v":301.3}]
["Уплата налогов,сборов и иных платежей","01","04","91.1.00.60001","850",{"$f":"F58+F59","v":{"v":71,"d":"71.0"}}]
["Уплата прочих налогов, сборов","01","04","91.1.00.60001","852",{"v":16,"d":"16.0"}]
["Уплата иных платежей","01","04","91.1.00.60001","853",{"$f":"35+20","v":{"v":55,"d":"55.0"}}]
["Исполнение судебных актов","01","04","91.1.00.60001","830",{"$f":"F61","v":230.3}]
[" Исполнение судебных актов Российской Федерации и мировых соглашений по возмещению вреда, причиненного в результате незаконных действий (бездействия) органов государственной власти (государственных органов), органов местного самоуправления либо должностных лиц этих органов, а также в результате деятельности казенных учреждений","01","04","91.1.00.60001","831",{"$f":"125.3+105","v":230.3}]
["Непрограммные расходы органов местного самоуправления за счет средств областного бюджета","01","04","91.2.00.00000","000",{"$f":"F71+F63","v":0.7}]
["Субсидии на выравнивание обеспеченности муниципальных образований Иркутской области по реализации ими их отдельных расходных обязательств","01","04","91.2.00.72600","000",{"$f":"F64+F68","v":{"v":0,"d":"0.0"}}]
["Расходы на выплаты персоналу в целях обеспечения выполнения функций государственными (муниципальными) органами, казенными учреждениями, органами управления государственными внебюджетными фондами","01","04","91.2.00.72600","100",{"$f":"F65","v":{"v":0,"d":"0.0"}}]
["Расходы на выплаты персоналу государственных (муниципальных) органов","01","04","91.2.00.72600","120",{"$f":"F66+F67","v":{"v":0,"d":"0.0"}}]
["Фонд оплаты труда государственных (муниципальных) органов ","01","04","91.2.00.72600","121",{"v":0,"d":"0.0"}]
["Взносы по обязательному социальному страхованию на выплаты денежного содержания и иные выплаты работникам государственных (муниципальных) органов","01","04","91.2.00.72600","129",{"v":0,"d":"0.0"}]
["Иные закупки товаров, работ и услуг для обеспечения государственных (муниципальных) нужд","01","04","91.2.00.72600","200",{"$f":"F69","v":{"v":0,"d":"0.0"}}]
["Прочая закупка товаров, работ и услуг для обеспечения государственных (муниципальных) нужд","01","04","91.2.00.72600","240",{"$f":"F70","v":{"v":0,"d":"0.0"}}]
["Прочая закупка товаров, работ и услуг для обеспечения государственных (муниципальных) нужд","01","04","91.2.00.72600","244",{"v":0,"d":"0.0"}]
["Субвенции на осуществление областного государственного полномочия по определению перечня должностных лиц органов местного самоуправления, уполномоченных составлять протоколы об административных правонарушениях, предусмотренных отдельными законами Иркутской области об административной ответственности","01","04","91.2.00.73150","000",{"$f":"F74","v":0.7}]
["Закупка товаров, работ и услуг для обеспечения государственных (муниципальных) нужд","01","04","91.2.00.73150","200",{"$f":"F73","v":0.7}]
["Иные закупки товаров, работ и услуг для обеспечения государственных (муниципальных) нужд","01","04","91.2.00.73150","240",{"$f":"F74","v":0.7}]
["Прочая закупка товаров, работ и услуг для обеспечения государственных (муниципальных) нужд","01","04","91.2.00.73150","244",0.7]
["Обеспечение проведения выборов и референдумов","01","07","00.0.00.00000","000",{"$f":"F76","v":{"v":0,"d":"0.0"}}]
["Непрограммные расходы органов местного самоуправления","01","07","91.0.00.00000","000",{"v":0,"d":"0.0"}]
["Непрограммные расходы органов местного самоуправления за счет средств местного бюджета","01","07","91.1.00.00000","000",{"v":0,"d":"0.0"}]
["Осуществление органами местного самоуправления полномочий местного значения поселения","01","07","91.1.00.60000","000",{"v":0,"d":"0.0"}]
["Проведения выборов и референдумов","01","07","91.1.00.60003","000",{"v":0,"d":"0.0"}]
["Закупка товаров, работ и услуг для обеспечения государственных (муниципальных) нужд","01","07","91.1.00.60003","200",{"v":0,"d":"0.0"}]
["Иные закупки товаров, работ и услуг для обеспечения государственных (муниципальных) нужд","01","07","91.1.00.60003","240",{"v":0,"d":"0.0"}]
["Прочая закупка товаров, работ и услуг для обеспечения государственных (муниципальных) нужд","01","07","91.1.00.60003","244",{"v":0,"d":"0.0"}]
["Резервные фонды","01","11","00.0.00.00000","000",{"$f":"F84","v":{"v":300,"d":"300.0"}}]
["Непрограммные расходы органов местного самоуправления","01","11","91.1.00.00000","000",{"v":300,"d":"300.0"}]
["Непрограммные расходы органов местного самоуправления за счет средств местного бюджета","01","11","91.1.00.00000","000",{"$f":"F86","v":{"v":300,"d":"300.0"}}]
["Осуществление органами местного самоуправления полномочий местного значения поселения","01","11","91.1.00.60000","000",{"v":300,"d":"300.0"}]
["Резервный фонд администрации муниципального образования","01","11","91.1.00.60004","000",{"v":300,"d":"300.0"}]
["Иные бюджетные ассигнования","01","11","91.1.00.60004","800",{"v":300,"d":"300.0"}]
["Резервные средства","01","11","91.1.00.60004","870",{"v":300,"d":"300.0"}]
["Другие общегосударственные вопросы","01","13","91.1.00.00000","000",{"$f":"F91","v":{"v":2654,"d":"2654.0"}}]
["Расходы на выплату персоналу в целях обеспечения выполнения функций государственными (муниципальными) органами, казенными учреждениями, органами управления государственными внебюджетными фондами","01","13","91.1.00.60002","100",{"$f":"F92+F93","v":{"v":2654,"d":"2654.0"}}]
["Расходы на выплаты персоналу в целях обеспечения выполнения функций государственными (муниципальными) органами, казенными учреждениями, органами управления государственными внебюджетными фондами","01","13","91.1.00.60002","111",2088.1]
["Взносы по обязательному социальному страхованию на выплаты по оплате труда работников и иные выплаты работникам учреждений","01","13","91.1.00.60002","119",565.9]
["НАЦИОНАЛЬНАЯ ОБОРОНА","02","00","00.0.00.00000","000",{"$f":"F99+F100+F101","v":327.2}]
["Мобилизационная и вневойсковая подготовка","02","03","00.0.00.00000","000",327.2]
["Непрограммные расходы органов местного самоуправления","02","03","91.0.00.00000","000",327.2]
["Субвенции на осуществление первичного воинского учета на территориях, где отсутствуют военные комиссариаты","02","03","91.3.00.51180","000",{"$f":"F101+F98","v":327.2}]
["Расходы на выплаты персоналу государственных (муниципальных) органов","02","03","91.3.00.51181","120",{"$f":"F99+F100","v":322.2}]
["Фонд оплаты труда государственных (муниципальных) органов и взносы по обязательному социальному страхованию","02","03","91.3.00.51180","121",247.5]
["Взносы по обязательному социальному страхованию на выплаты денежного содержания и иные выплаты работникам государственных (муниципальных) органов","02","03","91.3.00.51180","129",74.7]
["Закупка товаров, работ и услуг для обеспечения государственных (муниципальных) нужд","02","03","91.3.00.51180","200",{"v":5,"d":"5.0"}]
["Иные закупки товаров, работ и услуг для обеспечения государственных (муниципальных) нужд","02","03","91.3.00.51180","240",{"v":5,"d":"5.0"}]
["Прочая закупка товаров, работ и услуг для обеспечения государственных (муниципальных) нужд","02","03","91.3.00.51180","244",{"v":5,"d":"5.0"}]
["НАЦИОНАЛЬНАЯ БЕЗОПАСНОСТЬ И ПРАВООХРАНИТЕЛЬНАЯ ДЕЯТЕЛЬНОСТЬ","03","00","00.0.00.00000","000",{"$f":"F105","v":{"v":350,"d":"350.0"}}]
["Обеспечение пожарной безопасности","03","10","00.0.00.00000","000",{"v":350,"d":"350.0"}]
["Непрограммные расходы органов местного самоуправления","03","10","91.0.00.00000","000",{"v":350,"d":"350.0"}]
["Непрограммные расходы органов местного самоуправления за счет средств местного бюджета","03","10","91.1.00.00000","000",{"v":350,"d":"350.0"}]
["Осуществление органами местного самоуправления полномочий местного значения поселения","03","10","91.1.00.60000","000",{"v":350,"d":"350.0"}]
["Реализация других функций, связанных с обеспечением национальной безопасности и правоохранительной деятельности","03","10","91.1.00.60007","000",{"v":350,"d":"350.0"}]
["Закупка товаров, работ и услуг для обеспечения государственных (муниципальных) нужд","03","10","91.1.00.60007","200",{"v":350,"d":"350.0"}]
["Иные закупки товаров, работ и услуг для обеспечения государственных (муниципальных) нужд","03","10","91.1.00.60007","240",{"$f":"F112","v":{"v":350,"d":"350.0"}}]
["Прочая закупка товаров, работ и услуг для обеспечения государственных (муниципальных) нужд","03","10","91.1.00.60007","244",{"v":350,"d":"350.0"}]
["НАЦИОНАЛЬНАЯ ЭКОНОМИКА","04","00","00.0.00.00000","000",{"$f":"F114+F124","v":14296.3}]
["Дорожное хозяйство (дорожные фонды)","04","09","00.0.00.00000","000",{"$f":"F115","v":10559.8}]
["Непрограммные расходы органов местного самоуправления","04","09","91.0.00.00000","000",10559.8]
["Непрограммные расходы органов местного самоуправления за счет средств местного бюджета","04","09","91.1.00.00000","000",10559.8]
["Осуществление органами местного самоуправления полномочий местного значения поселения","04","09","91.1.00.60000","000",{"$f":"F119","v":10559.8}]
["Приобретение материальных и нематериальных активов в сфере установленных функций","04","09","91.1.00.60010","000",{"$f":"F120","v":10559.8}]
["Иные мероприятия и сфере установленных функций","04","09","91.1.00.60011","000",10559.8]
["Закупка товаров, работ и услуг для обеспечения государственных (муниципальных) нужд","04","09","91.1.00.60011","200",10559.8]
["Иные закупки товаров, работ и услуг для обеспечения государственных (муниципальных) нужд","04","09","91.1.00.60011","240",{"$f":"F123+F122","v":10559.8}]
["Закупка товаров, работ, услуг в целях капитального ремонта государственного (муниципального) имущества","04","09","91.1.00.60011","243",{"$f":"1960+1013.7","v":2973.7}]
["Прочая закупка товаров, работ и услуг для обеспечения государственных (муниципальных) нужд","04","09","91.1.00.60011","244",{"$f":"5633.8+2966-1013.7","v":{"v":7586.099999999999,"d":"7586.1"}}]
["Другие вопросы в области национальной экономике","04","12","00.0.00.00000","000",{"$f":"F125","v":{"v":3736.499999999999,"d":"3736.5"}}]
["Непрограммные расходы органов местного самоуправления","04","12","91.1.00.00000","000",{"v":3736.499999999999,"d":"3736.5"}]
["Непрограммные расходы органов местного самоуправления за счет средств местного бюджета","04","12","91.1.00.00000","000",{"v":3736.499999999999,"d":"3736.5"}]
["Осуществление органами местного самоуправления полномочий местного значения поселения","04","12","91.1.00.60000","000",{"$f":"F129","v":{"v":3736.499999999999,"d":"3736.5"}}]
["Приобретение материальных и нематериальных активов в сфере установленных функций","04","12","91.1.00.60010","000",{"$f":"F129","v":{"v":3736.499999999999,"d":"3736.5"}}]
["Иные мероприятия и сфере установленных функций","04","12","91.1.00.60011","000",{"v":3736.499999999999,"d":"3736.5"}]
["Закупка товаров, работ и услуг для обеспечения государственных (муниципальных) нужд","04","12","91.1.00.60011","200",{"v":3736.499999999999,"d":"3736.5"}]
["Иные закупки товаров, работ и услуг для обеспечения государственных (муниципальных) нужд","04","12","91.1.00.60011","240",{"$f":"F133+F132","v":{"v":3736.499999999999,"d":"3736.5"}}]
["Закупка товаров, работ, услуг в целях капитального ремонта государственного (муниципального) имущества","04","12","91.1.00.60011","243",873.7]
["Прочая закупка товаров, работ и услуг для обеспечения государственных (муниципальных) нужд","04","12","91.1.00.60011","244",{"$f":"8829.3-2966+999.5-4000","v":{"v":2862.7999999999993,"d":"2862.8"}}]
["ЖИЛИЩНО-КОММУНАЛЬНОЕ ХОЗЯЙСТВО","05","00","00.0.00.00000","000",{"$f":"F135+F143+F151","v":27122.4}]
["Жилищное хозяйство","05","01","00.0.00.00000","000",{"$f":"F136","v":{"v":6040,"d":"6040.0"}}]
["Непрограммные расходы органов местного самоуправления","05","01","91.0.00.00000","000",{"v":6040,"d":"6040.0"}]
["Непрограммные расходы органов местного самоуправления за счет средств местного бюджета","05","01","91.1.00.00000","000",{"v":6040,"d":"6040.0"}]
["Осуществление органами местного самоуправления полномочий местного значения поселения","05","01","91.1.00.60000","000",{"v":6040,"d":"6040.0"}]
["Строительство, реконструкция, капитальный ремонт в сфере установленных функций","05","01","91.1.00.60008","000",{"v":6040,"d":"6040.0"}]
["Закупка товаров, работ и услуг для обеспечения государственных (муниципальных) нужд","05","01","91.1.00.60008","200",{"v":6040,"d":"6040.0"}]
["Иные закупки товаров, работ и услуг для обеспечения государственных (муниципальных) нужд","05","01","91.1.00.60008","240",{"v":6040,"d":"6040.0"}]
["Закупка товаров, работ, услуг в целях капитального ремонта государственного (муниципального) имущества","05","01","91.1.00.60008","243",{"$f":"40+6000","v":{"v":6040,"d":"6040.0"}}]
["Коммунальное хозяйство","05","02","00.0.00.00000","000",{"$f":"F144","v":{"v":6997.699999999999,"d":"6997.7"}}]
["Непрограммные расходы органов местного самоуправления","05","02","91.0.00.00000","000",{"$f":"F146","v":{"v":6997.699999999999,"d":"6997.7"}}]
["Непрограммные расходы органов местного самоуправления за счет средств местного бюджета","05","02","91.1.00.00000","000",{"$f":"F146","v":{"v":6997.699999999999,"d":"6997.7"}}]
["Осуществление органами местного самоуправления полномочий местного значения поселения","05","02","91.1.00.60000","000",{"$f":"F147","v":{"v":6997.699999999999,"d":"6997.7"}}]
["Иные мероприятия и сфере установленных функций","05","02","91.1.00.60011","000",{"$f":"F148","v":{"v":6997.699999999999,"d":"6997.7"}}]
["Закупка товаров, работ и услуг для обеспечения государственных (муниципальных) нужд","05","02","91.1.00.60011","200",{"$f":"F149","v":{"v":6997.699999999999,"d":"6997.7"}}]
["Иные закупки товаров, работ и услуг для обеспечения государственных (муниципальных) нужд","05","02","91.1.00.60011","240",{"$f":"F150","v":{"v":6997.699999999999,"d":"6997.7"}}]
["Прочая закупка товаров, работ и услуг для обеспечения государственных (муниципальных) нужд","05","02","91.1.00.60011","244",{"$f":"7400+1000+0.3+0.4-6800+6800-4000-2500+4000+1097","v":{"v":6997.699999999999,"d":"6997.7"}}]
["Благоустройство","05","03","00.0.00.00000","000",{"$f":"F152","v":14084.7}]
["Непрограммные расходы органов местного самоуправления","05","03","91.0.00.00000","000",{"$f":"F153","v":14084.7}]
["Непрограммные расходы органов местного самоуправления за счет средств местного бюджета","05","03","91.1.00.00000","000",{"$f":"F154","v":14084.7}]
["Осуществление органами местного самоуправления полномочий местного значения поселения","05","03","91.1.00.60000","000",{"$f":"F155","v":14084.7}]
["Мероприятия в области жилищно-коммунального хозяйства","05","03","91.1.00.60100","000",{"$f":"F156+F162+F172","v":14084.7}]
["Уличное освещение","05","03","91.1.00.60101","000",{"$f":"F157+F160","v":3362.3}]
["Закупка товаров, работ и услуг для обеспечения государственных (муниципальных) нужд","05","03","91.1.00.60101","200",{"$f":"F158","v":3362.3}]
["Иные закупки товаров, работ и услуг для обеспечения государственных (муниципальных) нужд","05","03","91.1.00.60101","240",{"$f":"F159","v":3362.3}]
["Прочая закупка товаров, работ и услуг для обеспечения государственных (муниципальных) нужд","05","03","91.1.00.60101","244",{"$f":"1362.3+600+400+1000","v":3362.3}]
["Иные бюджетные ассигнования","05","03","91.1.00.60101","800",{"$f":"F161","v":{"v":0,"d":"0.0"}}]
["Уплата иных платежей","05","03","91.1.00.60001","853",{"v":0,"d":"0.0"}]
["Прочие  мероприятия по благоустройству городских округов и поселений ","05","03","91.1.00.60105","000",{"$f":"F163+F166","v":10722.4}]
["Закупка товаров, работ и услуг для обеспечения государственных (муниципальных) нужд","05","03","91.1.00.60105","200",{"$f":"F164","v":8222.4}]
["Иные закупки товаров, работ и услуг для обеспечения государственных (муниципальных) нужд","05","03","91.1.00.60105","240",{"$f":"F165","v":8222.4}]
["Прочая закупка товаров, работ и услуг для обеспечения государственных (муниципальных) нужд","05","03","91.1.00.60105","244",{"$f":"7472.4-1000+4000-1000-153-1097","v":8222.4}]
["Непрограммные расходы органов местного самоуправления за счет средств областного бюджета","05","03","91.4.00.S2370","000",{"$f":"F167","v":{"v":2500,"d":"2500.0"}}]
["Субсидии на реализацию мероприятий перечня проектов народных инициатив за счет областного бюджета","05","03","91.4.00.S2370","000",{"$f":"F168","v":{"v":2500,"d":"2500.0"}}]
["Закупка товаров, работ и услуг для обеспечения государственных (муниципальных) нужд","05","03","91.4.00.S2370","200",{"$f":"F169","v":{"v":2500,"d":"2500.0"}}]
["Иные закупки товаров, работ и услуг для обеспечения государственных (муниципальных) нужд","05","03","91.4.00.S2370","240",{"$f":"F170","v":{"v":2500,"d":"2500.0"}}]
["Прочая закупка товаров, работ и услуг для обеспечения государственных (муниципальных) нужд","05","03","91.4.00.S2370","244",{"$f":"2250+250-250+250","v":{"v":2500,"d":"2500.0"}}]
["Субсидии юридическим лицам (кроме некоммерческих организаций), индивидуальным предпринимателям, физическим лицам – производителям товаров, работ, услуг","05","03","91.1.00.60100","810",{"$f":"F172","v":{"v":0,"d":"0.0"}}]
["Субсидии на возмещение недополученных доходов и (или) возмещение фактически понесенных затрат в связи с производством (реализацией) товаров, выполнением работ, оказанием услуг ","05","03","91.1.00.60105","811",{"v":0,"d":"0.0"}]
["КУЛЬТУРА, КИНЕМАТОГРАФИЯ","08","00","00.0.00.00000","000",{"$f":"F174","v":{"v":22947.199999999997,"d":"22947.2"}}]
["КУЛЬТУРА","08","01","91.0.00.00000","000",{"$f":"F175+F181+F188","v":{"v":22947.199999999997,"d":"22947.2"}}]
["Непрограммные расходы органов местного самоуправления","08","01","91.1.00.00000","000",{"$f":"F176","v":{"v":13823.999999999998,"d":"13824.0"}}]
["Осуществление органами местного самоуправления полномочий местного значения поселения","08","01","91.1.00.60002","000",{"$f":"F177","v":{"v":13823.999999999998,"d":"13824.0"}}]
["Расходы на выплату персоналу в целях обеспечения выполнения функций государственными (муниципальными) органами, казенными учреждениями, органами управления государственными внебюджетными фондами","08","01","91.1.00.60002","100",{"$f":"F178","v":{"v":13823.999999999998,"d":"13824.0"}}]
["Расходы на выплату персоналу казенных учреждений","08","01","91.1.00.60002","110",{"$f":"F179+F180","v":{"v":13823.999999999998,"d":"13824.0"}}]
["Фонд оплаты труда казенных учреждений и взносы по обязательному социальному страхованию","08","01","91.1.00.60002","111",{"$f":"10659-2088.1+1396+460.8","v":{"v":10427.699999999999,"d":"10427.7"}}]
["Взносы по обязательному социальному страхованию на выплаты по оплате труда работников и иные выплаты работникам учреждений","08","01","91.1.00.60002","119",{"$f":"3219-565.9+604+139.2","v":{"v":3396.2999999999997,"d":"3396.3"}}]
["Непрограммные расходы органов местного самоуправления","08","01","91.0.00.00000","000",{"$f":"F182","v":8990.2}]
["Непрограммные расходы органов местного самоуправления за счет средств местного бюджета","08","01","91.1.00.00000","000",8990.2]
["Осуществление органами местного самоуправления полномочий местного значения поселения","08","01","91.1.00.60000","000",8990.2]
["Обеспечение деятельности в сфере установленных функции бюджетных, автономных и казенных учреждений","08","01","91.1.00.60002","000",8990.2]
["Закупка товаров, работ и услуг для обеспечения государственных (муниципальных) нужд","08","01","91.1.00.60002","200",8990.2]
["Иные закупки товаров, работ и услуг для обеспечения государственных (муниципальных) нужд","08","01","91.1.00.60002","240",8990.2]
["Прочая закупка товаров, работ и услуг для обеспечения государственных (муниципальных) нужд","08","01","91.1.00.60002","244",{"$f":"3373.2+600-12+450+400-21+1000-100+800+2500","v":8990.2}]
["Иные бюджетные ассигнования","08","01","91.1.00.60002","850",{"$f":"F190+F189","v":{"v":133,"d":"133.0"}}]
["Уплата прочих налогов, сборов","08","01","91.1.00.60002","852",{"v":8,"d":"8.0"}]
["Уплата иных платежей","08","01","91.1.00.60002","853",{"$f":"25+100","v":{"v":125,"d":"125.0"}}]
["СОЦИАЛЬНАЯ ПОЛИТИКА","10","00","00.0.00.00000","000",{"$f":"F192","v":244.7}]
["Пенсионное обеспечение","10","01","00.0.00.00000","000",244.7]
["Непрограммные расходы органов местного самоуправления","10","01","91.0.00.00000","000",244.7]
["Непрограммные расходы органов местного самоуправления за счет средств местного бюджета","10","01","91.1.00.00000","000",244.7]
["Осуществление органами местного самоуправления полномочий местного значения поселения","10","01","91.1.00.60000","000",244.7]
["Доплаты к пенсиям муниципальных служащих","10","01","91.1.00.60018","000",244.7]
["Социальное обеспечение и иные выплаты населению","10","01","91.1.00.60018","300",244.7]
["Публичные нормативные социальные выплаты гражданам","10","01","91.1.00.60018","310",244.7]
["Иные пенсии, социальные доплаты к пенсиям","10","01","91.1.00.60018","312",244.7]
["ФИЗИЧЕСКАЯ КУЛЬТУРА И СПОРТ","11","00","00.0.00.00000","000",{"$f":"F201","v":{"$error":"#REF!"}}]
["Другие вопросы в области физической культуры и спорта","11","05","00.0.00.00000","000",{"$error":"#REF!"}]
["Непрограммные расходы органов местного самоуправления","11","05","91.0.00.00000","000",{"$error":"#REF!"}]
["Непрограммные расходы органов местного самоуправления за счет средств местного бюджета","11","05","91.1.00.00000","000",{"$error":"#REF!"}]
["Осуществление органами местного самоуправления полномочий местного значения поселения","11","05","91.1.00.60000","000",{"$error":"#REF!"}]
["Обеспечение деятельности в сфере установленных функции бюджетных, автономных и казенных учреждений","11","05","91.1.00.60002","000",{"$error":"#REF!"}]
["Закупка товаров, работ и услуг для обеспечения государственных (муниципальных) нужд","11","05","91.1.00.60002","200",{"$error":"#REF!"}]
["Иные закупки товаров, работ и услуг для обеспечения государственных (муниципальных) нужд","11","05","91.1.00.60002","240",{"$f":"#REF!","v":{"$error":"#REF!"}}]
["МЕЖБЮДЖЕТНЫЕ ТРАНСФЕРТЫ БЮДЖЕТАМ БЮДЖЕТНОЙ СИСТЕМЫ РФ","14","00","00.0.00.00000","000",{"$f":"F209","v":259.2}]
["Прочие межбюджетные трансферты общего характера ","14","03","00.0.00.00000","000",{"$f":"F210","v":259.2}]
["Непрограммые расходы органов местного самоуправления ","14","03","91.0.00.00000","000",259.2]
["Непрограммые расходы органов местного самоуправления за счет средств местного бюджета","14","03","91.1.00.00000","000",259.2]
["Осуществление органами местного самоуправления полномочий местного значения поселения","14","03","91.1.00.60000","000",259.2]
["Иные межбюджетные трансферты","14","03","91.1.00.60020","000",259.2]
["Выполнение функций органами местного самоуправления","14","03","91.1.00.60020","500",259.2]
["Иные межбюджетные трансферты","14","03","91.1.00.60020","540",259.2]
["МЕЖБЮДЖЕТНЫЕ ТРАНСФЕРТЫ ОБЩЕГО ХАРАКТЕРА БЮДЖЕТАМ СУБЪЕКТОВ РОССИЙСКОЙ ФЕДЕРАЦИИ И МУНИЦИПАЛЬНЫХ ОБРАЗОВАНИЙ ","14","00","00.0.00.00000","000",{"$f":"F217","v":{"$error":"#REF!"}}]
["Прочие межбюджетные трансферты общего характера ","14","03","00.0.00.00000","000",{"$error":"#REF!"}]
["Непрограммные расходы органов местного самоуправления","14","03","91.0.00.00000","000",{"$error":"#REF!"}]
["Непрограммные расходы органов местного самоуправления за счет средств местного бюджета","14","03","91.1.00.00000","000",{"$error":"#REF!"}]
["Осуществление органами местного самоуправления полномочий местного значения поселения","14","03","91.1.00.60000","000",{"$error":"#REF!"}]
["Иные межбюджетные трансферты","14","03","91.1.00.60020","000",{"$error":"#REF!"}]
["Межбюджетные трансферты","14","03","91.1.00.60020","500",{"$f":"#REF!","v":{"$error":"#REF!"}}]